bitfinex-derivatives/quotes_ETHF0:USTF0_20241024
["timestamp","ask_amount","ask_price","bid_price","bid_amount"]
[1729760077181,0.39614,2526.5,2526.2,1.41797]
[1729760077680,0.39614,2526.5,2526.2,0.92468]
[1729760077879,3.7144,2526.8,2526.2,0.5285]
[1729760078079,3.7144,2526.8,2526.1,4.14239]
[1729760078282,0.39616,2526.4,2526.1,4.14239]
[1729760078967,4.16726491,2526.7,2526.1,3.7462]
[1729760078968,0.39614,2526.5,2526.1,3.7462]
[1729760079183,0.39614,2526.5,2526.2,0.39617]
[1729760079368,0.39614,2526.5,2526.1,3.7462]
[1729760079573,0.39614,2526.5,2526.3,0.39617]
[1729760079873,0.39612,2526.6,2526.2,0.39618]
[1729760080082,0.39611,2526.7,2526.4,0.39615]
[1729760080275,3.7144,2526.8,2526.1,3.7462]
[1729760080476,0.39612,2526.6,2526.3,0.39616]
[1729760080677,0.39611,2526.7,2526.4,0.39614]
[1729760080878,0.39611,2526.7,2526.5,0.39614]
[1729760081076,3.7144,2526.8,2526.7,0.3961]
[1729760081275,0.39608,2526.9,2526.6,0.39611]
[1729760081471,0.39608,2526.9,2526.7,0.5399]
[1729760081677,0.39606,2527.0,2526.7,0.5399]
[1729760081986,0.39607,2527.0,2526.7,0.936]
[1729760082180,4.10015,2527.1,2526.8,0.39608]
[1729760082482,3.2078,2527.1,2526.7,3.7477]
[1729760082685,3.60384,2527.1,2526.9,0.39607]
[1729760082878,3.2078,2527.1,2527.0,0.39606]
[1729760083682,0.9066,2527.4,2527.2,0.39602]
[1729760083880,0.396,2527.4,2527.2,0.39602]
[1729760084085,44.00379,2527.5,2527.3,0.396]
[1729760084383,40.4,2527.5,2527.4,0.39599]
[1729760084581,0.39597,2527.6,2527.4,0.39599]
[1729760084983,0.39598,2527.5,2527.3,0.396]
[1729760085185,40.4,2527.6,2527.0,3.2078]
[1729760085380,0.39599,2527.5,2527.3,0.39601]
[1729760085685,0.396,2527.4,2527.2,0.39602]
[1729760085878,0.99012,2527.1,2526.5,1.03003743]
[1729760086075,6.25435648,2526.6,2525.9,3.2078]
[1729760086273,6.25435648,2526.6,2525.5,0.5451]
[1729760086274,0.39625,2525.8,2525.5,0.94138]
[1729760086682,0.39624,2525.9,2525.6,0.39628]
[1729760086881,0.39624,2525.9,2525.5,0.5451]
[1729760087086,0.39619,2526.2,2525.8,0.39623]
[1729760087282,3.7182,2526.3,2525.5,0.5451]
[1729760087489,3.7182,2526.3,2525.6,0.39627]
[1729760087786,0.39624,2525.9,2525.6,0.39627]
[1729760087982,3.7182,2526.3,2525.5,0.5451]
[1729760088177,3.7182,2526.3,2525.6,0.39628]
[1729760088378,0.39624,2525.9,2525.5,0.94138]
[1729760088579,0.39622,2526.0,2525.7,0.39626]
[1729760089093,0.39623,2525.9,2525.6,0.39626]
[1729760089581,0.39623,2525.9,2525.5,0.5451]
[1729760089788,0.39624,2525.9,2525.5,0.94138]
[1729760089998,0.39624,2525.9,2525.6,0.39627]
[1729760090198,0.39622,2526.0,2525.7,0.39626]
[1729760090493,0.39623,2525.9,2525.6,0.39627]
[1729760091287,0.39625,2525.8,2525.5,0.94139]
[1729760091585,0.39628,2525.6,2525.5,0.5451]
[1729760092292,3.2078,2526.0,2525.3,0.54]
[1729760092586,3.2078,2526.0,2525.1,4.23783743]
[1729760092587,0.39632,2525.4,2525.1,3.2078]
[1729760092790,0.39633,2525.3,2525.0,0.93577]
[1729760092987,0.39632,2525.4,2525.1,0.39635]
[1729760093186,0.5011,2525.6,2525.2,0.39633]
[1729760093187,5.12191853,2525.6,2525.2,0.39633]
[1729760093387,0.39629,2525.6,2525.3,0.39632]
[1729760093986,0.39629,2525.6,2525.0,0.5394]
[1729760093987,0.39632,2525.3,2525.0,0.93576]
[1729760094183,43.6078,2525.7,2525.0,0.93576]
[1729760094184,0.39632,2525.4,2525.1,0.39635]
[1729760094493,3.2078,2525.4,2524.8,0.535]
[1729760094689,0.39635,2525.2,2524.9,1.01608869]
[1729760094886,0.39635,2525.2,2524.9,0.39638]
[1729760095094,3.2078,2525.4,2524.8,1.0744]
[1729760095403,3.2078,2525.1,2524.5,4.23783743]
[1729760095602,0.3964,2524.9,2524.5,3.60424]
[1729760095904,0.5332,2525.0,2524.5,3.2078]
[1729760095905,0.3964,2524.8,2524.5,3.2078]
[1729760096101,0.5332,2525.0,2524.5,3.2078]
[1729760096400,0.39641,2524.8,2524.4,0.39646]
[1729760096605,0.39641,2524.8,2524.2,0.5228]
[1729760096606,0.39643,2524.7,2524.2,0.5228]
[1729760096903,3.60425,2524.5,2524.2,0.5228]
[1729760097497,3.2078,2524.5,2524.2,0.5228]
[1729760097803,3.60426,2524.5,2524.2,0.5228]
[1729760098502,0.39647,2524.4,2524.2,0.5228]
[1729760098799,3.2078,2524.5,2524.2,0.5228]
[1729760099101,0.39647,2524.4,2524.2,0.5228]
[1729760099294,3.2078,2524.5,2524.2,0.5228]
[1729760099295,3.60426,2524.5,2524.2,0.5228]
[1729760099692,7.1694,2524.5,2523.7,3.2078]
[1729760099901,3.2078,2524.2,2523.7,3.2078]
[1729760100100,0.39652,2524.1,2523.7,3.60437]
[1729760100600,3.2078,2524.2,2523.9,0.39654]
[1729760100804,3.2078,2524.2,2524.1,0.39651]
[1729760101008,3.2078,2524.2,2524.0,0.39652]
[1729760101301,0.5099,2524.4,2524.2,0.3965]
[1729760101498,0.5099,2524.4,2524.1,0.3965]
[1729760102502,0.5099,2524.4,2523.7,6.25435648]
[1729760102503,3.2078,2524.2,2523.7,3.2078]
[1729760102701,3.2078,2524.2,2524.0,0.39652]
[1729760102897,0.5099,2524.4,2524.1,0.39651]
[1729760103103,0.5099,2524.4,2523.7,6.25435648]
[1729760103300,4.55650466,2524.3,2523.7,6.25435648]
[1729760103596,4.55650466,2524.3,2524.1,0.39651]
[1729760103802,4.55650466,2524.3,2523.7,6.25435648]
[1729760104211,4.55650466,2524.3,2524.0,0.39652]
[1729760104703,7.1694,2524.2,2523.1,4.07659391]
[1729760105012,7.1694,2524.2,2523.7,0.39657]
[1729760105013,4.71359319,2524.1,2523.7,0.39657]
[1729760105404,4.31708319,2524.1,2523.5,0.3966]
[1729760105607,3.60435,2523.9,2523.5,0.3966]
[1729760105804,3.60435,2523.9,2523.3,0.5272]
[1729760105805,0.39657,2523.8,2523.4,0.39662]
[1729760106012,4.52187925,2523.8,2523.3,0.5272]
[1729760106303,4.91843925,2523.8,2523.4,0.39662]
[1729760106511,4.91843925,2523.8,2523.5,0.39661]
[1729760106811,4.52187925,2523.8,2523.5,0.3966]
[1729760107011,3.7213,2524.3,2523.6,3.2078]
[1729760107218,3.2078,2524.3,2523.6,3.2078]
[1729760107517,3.2078,2524.3,2522.8,1.33693338]
[1729760107518,3.04655648,2524.2,2522.8,1.33693338]
[1729760107704,3.04655648,2524.2,2521.4,2.89638632]
[1729760107705,14.51594176,2522.2,2521.4,2.89638632]
[1729760108012,0.39692,2521.6,2520.7,0.91164]
[1729760108214,41.41219214,2522.1,2520.7,0.91164]
[1729760108215,3.2078,2521.4,2520.9,3.04655648]
[1729760108407,3.2078,2521.4,2520.9,6.65136648]
[1729760108604,2.61202863,2521.4,2520.9,3.04655648]
[1729760108913,2.61202863,2521.4,2520.7,0.5146]
[1729760109208,3.2078,2520.9,2519.4,4.44904427]
[1729760109407,3.2078,2520.9,2519.9,6.25435648]
[1729760109608,3.04655648,2521.3,2520.5,3.2078]
[1729760109801,3.04655648,2521.3,2520.4,3.2078]
[1729760109802,3.2078,2521.1,2520.4,3.2078]
[1729760110014,3.2078,2521.1,2520.4,0.39709]
[1729760110206,3.2078,2521.1,2520.3,1.38]
[1729760110403,3.2078,2521.1,2520.3,1.7771]
[1729760110917,3.2078,2521.1,2520.4,3.2078]
[1729760111105,3.60475,2521.4,2520.5,0.39707]
[1729760111305,3.60475,2521.4,2520.6,0.39705]
[1729760111306,3.2078,2521.4,2520.6,0.39705]
[1729760111512,7.52254555,2521.4,2520.5,0.39708]
[1729760111726,3.2078,2521.4,2520.7,3.2078]
[1729760112014,3.2078,2521.4,2521.0,0.39699]
[1729760112211,3.2078,2521.7,2520.7,3.2078]
[1729760112418,3.2078,2521.7,2521.3,0.39694]
[1729760112605,3.2078,2521.7,2521.1,3.2078]
[1729760112606,3.2078,2521.7,2521.4,0.5202]
[1729760112805,3.2078,2522.2,2521.4,3.728]
[1729760113007,3.2078,2521.9,2521.4,3.728]
[1729760113424,3.60466,2521.9,2521.4,0.5202]
[1729760113607,3.2078,2521.5,2521.4,0.5202]
[1729760114415,10.60589741,2521.5,2520.0,3.4078]
[1729760114716,3.2078,2520.7,2520.3,0.39711]
[1729760114909,3.2078,2520.7,2520.2,3.2078]
[1729760115116,3.2078,2521.0,2520.3,0.3971]
[1729760115315,3.2078,2521.0,2520.2,4.5888]
[1729760115511,3.2078,2521.0,2520.4,0.39708]
[1729760115710,3.2078,2521.0,2520.2,3.2078]
[1729760115915,3.2078,2521.0,2520.2,4.5888]
[1729760116117,3.2078,2521.0,2520.3,0.3971]
[1729760116320,3.2078,2520.7,2520.2,0.39711]
[1729760116519,3.2078,2520.7,2520.5,0.39707]
[1729760116717,0.39698,2521.2,2520.5,0.39707]
[1729760116718,3.2078,2521.0,2520.5,0.39707]
[1729760117320,4.33434765,2520.9,2520.5,0.39707]
[1729760117513,3.2078,2521.0,2520.2,4.5888]
[1729760117709,3.2078,2521.0,2520.6,0.39705]
[1729760118114,3.2078,2521.0,2520.2,4.5888]
[1729760118516,3.2078,2521.0,2520.7,0.39704]
[1729760118824,3.2078,2521.0,2520.8,0.39702]
[1729760119322,3.2078,2521.0,2520.6,1.381]
[1729760119520,3.2078,2521.0,2520.7,0.4958]
[1729760119723,3.2078,2521.7,2520.7,7.6708]
[1729760119917,3.2078,2521.7,2520.8,1.381]
[1729760120113,0.39691,2521.6,2521.0,0.39699]
[1729760120415,3.2078,2521.7,2521.2,0.39696]
[1729760120621,0.39691,2521.6,2521.1,0.39698]
[1729760120821,3.6047,2521.7,2521.2,0.39696]
[1729760121017,3.43249741,2522.0,2520.9,0.5025]
[1729760121018,6.64029741,2522.0,2520.9,0.5025]
[1729760121320,6.64029741,2522.0,2521.1,0.39697]
[1729760121321,0.39692,2521.6,2521.1,0.39697]
[1729760121525,0.39692,2521.5,2521.1,0.39697]
[1729760121718,0.39691,2521.6,2521.1,0.39697]
[1729760122023,3.2078,2521.4,2521.1,0.39697]
[1729760122322,3.2078,2521.4,2521.0,1.8617]
[1729760122323,3.2078,2521.4,2521.2,0.39697]
[1729760122516,3.2078,2521.4,2521.3,0.39695]
[1729760122925,3.2078,2521.4,2521.3,4.36335]
[1729760123111,3.2078,2521.8,2521.0,5.0695]
[1729760123316,0.39692,2521.5,2521.1,0.39697]
[1729760123516,7.85044539,2521.8,2521.3,0.39694]
[1729760123717,0.3969,2521.7,2521.3,0.39694]
[1729760124120,0.3969,2521.7,2521.2,0.39695]
[1729760124322,0.39689,2521.7,2521.2,0.39695]
[1729760124624,0.39691,2521.6,2521.2,0.39695]
[1729760124822,7.45356539,2521.8,2521.0,5.0695]
[1729760125220,7.45356539,2521.8,2521.1,0.39698]
[1729760125221,0.39693,2521.5,2521.1,0.39698]
[1729760125725,0.3969,2521.7,2521.1,3.9664]
[1729760125923,0.3969,2521.7,2521.3,0.39694]
[1729760126324,0.39691,2521.6,2521.3,0.39694]
[1729760126726,0.39691,2521.6,2521.2,0.39696]
[1729760126926,3.2078,2521.8,2521.0,5.0695]
[1729760127116,0.39693,2521.5,2521.1,0.39698]
[1729760127324,3.2078,2521.8,2521.1,0.39698]
[1729760127522,3.2078,2521.8,2521.0,5.46649]
[1729760127721,0.39695,2521.4,2521.0,5.0695]
[1729760127927,3.2078,2521.4,2521.0,4.08549]
[1729760128224,3.2078,2521.4,2521.0,3.6885]
[1729760128424,3.2078,2521.4,2521.2,0.39696]
[1729760128621,3.2078,2521.4,2521.3,0.39695]
[1729760129228,3.2078,2521.4,2521.2,0.39696]
[1729760129419,3.2078,2521.4,2521.1,1.381]
[1729760129620,3.2078,2521.4,2521.2,0.39696]
[1729760129822,3.2078,2521.4,2521.3,0.39695]
[1729760130327,3.2078,2521.4,2521.3,4.36335]
[1729760130625,37.2773,2522.5,2521.3,4.36335]
[1729760130626,3.2078,2522.3,2521.3,7.1742]
[1729760130829,0.39677,2522.5,2522.1,0.39682]
[1729760131324,3.653,2522.6,2522.0,0.39683]
[1729760131525,0.39679,2522.4,2522.0,0.39683]
[1729760131930,3.653,2522.6,2521.8,4.5888]
[1729760132130,0.39686,2521.9,2521.8,3.2078]
[1729760132325,3.2078,2522.2,2521.5,1.381]
[1729760132721,0.39689,2521.7,2521.5,1.381]
[1729760133523,0.39687,2521.9,2521.5,1.381]
[1729760133824,0.39688,2521.8,2521.4,3.60473]
[1729760134018,4.59428899,2522.1,2521.4,3.2078]
[1729760134225,3.2078,2522.2,2521.4,3.2078]
[1729760134429,0.39689,2521.8,2521.4,3.2078]
[1729760134635,0.39687,2521.9,2521.5,0.39691]
[1729760135138,0.39683,2522.1,2521.6,0.3969]
[1729760135325,3.2078,2522.2,2521.6,0.3969]
[1729760135523,0.39683,2522.1,2521.6,0.3969]
[1729760135726,3.2078,2522.2,2521.4,3.2078]
[1729760135928,4.19986,2522.2,2521.4,3.2078]
[1729760136123,3.2078,2521.9,2521.2,0.5184]
[1729760136320,0.39691,2521.6,2521.4,0.39693]
[1729760136527,4.29242314,2521.8,2521.2,0.5184]
[1729760136724,0.39688,2521.8,2521.5,0.39692]
[1729760136926,4.13207,2521.9,2521.6,0.39689]
[1729760137128,3.7352,2521.9,2521.6,0.39689]
[1729760137433,0.39688,2521.8,2521.5,0.39691]
[1729760137828,0.39689,2521.7,2521.5,0.39691]
[1729760138023,3.7352,2521.9,2521.4,3.05034316]
[1729760138227,0.39688,2521.8,2521.6,0.3969]
[1729760138527,3.2078,2521.9,2521.8,0.39687]
[1729760139335,3.2078,2521.9,2521.8,4.36247]
[1729760139635,0.9005,2522.3,2522.1,0.39682]
[1729760140327,3.2078,2522.6,2522.1,3.9648]
[1729760140532,0.39675,2522.6,2522.4,0.39677]
[1729760140735,3.7344,2522.9,2522.6,0.39674]
[1729760140938,0.39673,2522.8,2522.6,0.39675]
[1729760141128,0.39673,2522.8,2522.3,3.2078]
[1729760141129,0.39673,2522.7,2522.5,0.39675]
[1729760141328,0.39673,2522.8,2522.5,0.39675]
[1729760141542,0.39673,2522.7,2522.5,0.39675]
[1729760141734,0.39673,2522.8,2522.5,0.39675]
[1729760141937,0.39674,2522.7,2522.5,0.39676]
[1729760142235,0.39673,2522.8,2522.3,3.2078]
[1729760142435,3.7344,2522.9,2522.4,3.05034316]
[1729760142639,3.60451,2522.9,2522.7,0.39672]
[1729760143137,3.2078,2522.9,2522.7,0.39672]
[1729760143444,3.2078,2522.9,2522.4,3.05034316]
[1729760143630,0.39666,2523.2,2523.0,0.39667]
[1729760143843,0.39666,2523.2,2522.7,3.05034316]
[1729760143844,0.39663,2523.4,2523.1,0.39666]
[1729760144028,0.39664,2523.3,2523.1,0.39666]
[1729760144334,3.7078,2523.6,2522.9,7.24990316]
[1729760144541,3.2078,2523.6,2523.5,3.44695316]
[1729760144737,37.1,2523.8,2523.7,0.39658]
[1729760144935,3.60434,2524.0,2523.7,0.39656]
[1729760145135,3.60434,2524.0,2523.5,3.05034316]
[1729760145136,3.2078,2524.0,2523.5,3.05034316]
[1729760145339,3.2078,2524.0,2523.6,0.39658]
[1729760145646,3.2078,2524.0,2523.5,3.05034316]
[1729760145846,0.39654,2523.9,2523.7,0.39656]
[1729760146339,0.39654,2523.9,2523.7,0.39657]
[1729760146532,4.11129,2524.3,2523.8,7.01274316]
[1729760146738,3.7148,2524.3,2524.2,0.3965]
[1729760146938,3.7148,2524.3,2524.0,3.05034316]
[1729760147135,4.11128,2524.3,2524.1,0.3965]
[1729760147444,3.2078,2524.3,2524.2,0.3965]
[1729760147738,3.2078,2524.3,2524.1,0.39651]
[1729760147739,0.3965,2524.2,2524.1,0.39651]
[1729760147942,3.2078,2524.3,2524.2,0.3965]
[1729760148643,0.5,2524.6,2524.0,3.05034316]
[1729760148644,3.2078,2524.6,2524.0,3.05034316]
[1729760148845,3.2078,2524.6,2524.5,0.39645]
[1729760149434,3.2078,2524.6,2524.5,4.35725]
[1729760151543,0.39638,2525.0,2524.7,0.39642]
[1729760151950,3.60415,2525.2,2524.9,3.44672316]
[1729760152257,3.60415,2525.2,2524.9,3.05034316]
[1729760152258,3.2078,2525.2,2524.9,3.05034316]
[1729760152744,3.2078,2525.2,2525.1,0.39636]
[1729760153048,3.2078,2525.6,2525.2,0.39634]
[1729760153342,3.2078,2525.6,2525.5,3.05034316]
[1729760153639,3.2078,2525.6,2525.3,0.39632]
[1729760153640,3.60408,2525.6,2525.3,0.39632]
[1729760153841,3.60409,2525.6,2525.3,0.39632]
[1729760154148,3.2078,2525.6,2525.3,0.39632]
[1729760154845,3.2078,2525.6,2525.5,3.05034316]
[1729760155040,3.2078,2525.6,2525.5,4.81663316]
[1729760155246,3.2078,2525.6,2525.5,8.37954316]
[1729760155450,3.2078,2525.6,2525.5,8.77583316]
[1729760155949,3.2078,2525.9,2525.8,0.39625]
[1729760156438,3.2078,2525.9,2525.8,4.35545]
[1729760156839,3.2078,2526.2,2526.1,0.3962]
[1729760157039,3.2078,2526.2,2526.1,3.44654316]
[1729760157239,0.39613,2526.6,2526.3,0.39616]
[1729760157444,0.92621,2526.7,2526.4,0.39615]
[1729760157639,0.5301,2526.7,2526.3,3.05034316]
[1729760157848,0.39615,2526.4,2526.3,3.05034316]
[1729760158050,3.2078,2526.4,2526.0,3.05034316]
[1729760158252,3.2078,2526.4,2525.9,1.37]
[1729760158253,0.3962,2526.1,2525.9,1.37]
[1729760158853,3.2078,2526.4,2525.9,1.76623]
[1729760158854,0.39619,2526.2,2525.9,1.76623]
[1729760159044,0.39621,2526.1,2525.9,1.37]
[1729760159350,3.2078,2526.4,2525.9,1.37]
[1729760159544,0.3962,2526.1,2525.9,1.37]
[1729760159941,0.3962,2526.1,2525.8,3.44658316]
[1729760159942,0.39623,2525.9,2525.6,2.26998]
[1729760160650,0.39626,2525.7,2525.6,1.369]
[1729760160954,0.39626,2525.8,2525.6,1.369]
[1729760161251,3.2078,2526.1,2525.5,6.25814316]
[1729760161454,0.3962,2526.1,2526.0,3.05034316]
[1729760161746,0.39618,2526.3,2526.0,3.44655316]
[1729760162144,3.2078,2526.4,2526.1,0.39619]
[1729760162344,3.2078,2526.4,2526.3,0.39617]
[1729760163250,0.39607,2527.0,2526.4,0.39615]
[1729760163450,0.39609,2526.8,2526.7,3.05034316]
[1729760163751,0.39616,2526.4,2526.2,3.05034316]
[1729760164451,3.2078,2526.8,2526.2,3.05034316]
[1729760165344,3.2078,2526.8,2526.1,1.369]
[1729760165345,0.39611,2526.7,2526.4,3.05034316]
[1729760165546,3.60389,2526.8,2526.5,0.39613]
[1729760165746,3.2078,2526.8,2526.6,0.39611]
[1729760165951,0.39611,2526.7,2526.4,3.44648316]
[1729760166644,0.39611,2526.7,2526.5,0.39613]
[1729760166851,0.39609,2526.8,2526.4,3.05034316]
[1729760167056,0.39609,2526.8,2526.5,0.39614]
[1729760167459,0.39609,2526.8,2526.4,3.05034316]
[1729760167753,37.1,2527.1,2526.4,3.05034316]
[1729760167954,37.1,2527.1,2526.6,3.2078]
[1729760168155,37.1,2527.1,2526.9,0.39606]
[1729760168156,37.49605,2527.1,2526.9,0.39606]
[1729760168354,37.1,2527.1,2526.7,3.05034316]
[1729760168664,4.13654,2527.2,2527.0,0.39606]
[1729760168846,3.7405,2527.2,2527.0,3.05034316]
[1729760169055,3.2078,2527.2,2527.1,0.39604]
[1729760169352,3.60383,2527.2,2527.1,3.9568]
[1729760169556,3.60383,2527.2,2527.0,3.05034316]
[1729760169557,0.39604,2527.1,2527.0,3.05034316]
[1729760169755,0.39609,2526.8,2526.7,3.05034316]
[1729760170253,0.39608,2526.9,2526.8,0.39609]
[1729760170453,0.39605,2527.1,2526.7,3.05034316]
[1729760170669,0.39605,2527.1,2526.6,3.2078]
[1729760170670,0.39605,2527.1,2527.0,3.05034316]
[1729760171757,0.39608,2526.9,2526.7,3.92884316]
[1729760172154,0.39607,2526.9,2526.8,3.9576]
[1729760172358,3.2078,2527.2,2526.7,3.53274316]
[1729760172560,0.39608,2526.9,2526.7,3.92884316]
[1729760172759,3.2078,2527.2,2526.7,3.92884316]
[1729760172760,0.39607,2527.0,2526.7,3.92884316]
[1729760172953,0.39604,2527.1,2526.7,3.92884316]
[1729760173160,0.39607,2527.0,2526.7,3.53274316]
[1729760173458,3.2078,2527.2,2526.9,3.05034316]
[1729760173662,0.39606,2527.0,2526.9,3.05034316]
[1729760175762,3.2078,2527.2,2526.8,1.353]
[1729760175960,0.39607,2526.9,2526.8,1.353]
[1729760176860,0.39607,2526.9,2526.7,3.53274316]
[1729760177066,0.39609,2526.8,2526.7,4.40334316]
[1729760177669,3.2078,2527.2,2526.4,3.2078]
[1729760177861,0.39615,2526.4,2526.3,1.353]
[1729760178463,1.47377,2526.7,2526.1,6.25814316]
[1729760178464,37.0835,2526.7,2526.1,6.25814316]
[1729760178767,0.39618,2526.2,2526.1,6.25814316]
[1729760179168,0.39618,2526.2,2526.1,10.21654316]
[1729760179372,0.39618,2526.2,2526.1,3.2078]
[1729760180267,4.19812,2526.6,2526.1,7.5624]
[1729760180571,0.39618,2526.2,2526.1,3.2078]
[1729760182080,4.19812,2526.6,2526.1,3.60399]
[1729760182377,0.39618,2526.2,2526.1,3.2078]
[1729760182574,0.39618,2526.2,2526.1,3.604]
[1729760183575,0.39618,2526.2,2526.1,3.2078]
[1729760183877,0.39618,2526.2,2526.1,3.604]
[1729760184376,4.19812,2526.6,2526.1,3.2078]
[1729760184576,0.39618,2526.2,2526.1,3.2078]
[1729760184774,0.39618,2526.3,2526.1,3.60399]
[1729760184974,0.39616,2526.4,2526.2,0.39618]
[1729760185369,3.2078,2526.6,2526.1,6.25814316]
[1729760185577,0.39618,2526.2,2526.1,6.25814316]
[1729760187469,0.39618,2526.2,2526.1,3.2078]
[1729760187673,0.39618,2526.2,2525.8,3.2078]
[1729760187674,4.94886,2526.2,2525.8,3.2078]
[1729760187877,0.39623,2525.9,2525.8,3.2078]
[1729760188381,0.39627,2525.7,2525.5,8.00743316]
[1729760189076,0.39631,2525.4,2525.3,3.05034316]
[1729760189884,0.39632,2525.3,2525.2,3.2078]
[1729760190473,3.2078,2525.7,2525.2,3.2078]
[1729760190677,0.39627,2525.7,2525.5,3.2078]
[1729760190877,0.39627,2525.7,2525.6,0.39628]
[1729760191090,0.39628,2525.6,2525.5,3.7215]
[1729760191280,0.39628,2525.6,2525.5,0.5137]
[1729760191880,4.19836,2526.0,2525.5,0.5137]
[1729760192081,0.39628,2525.6,2525.5,0.5137]
[1729760193383,0.39627,2525.7,2525.5,6.47235057]
[1729760193584,0.39627,2525.7,2525.5,2.05763824]
[1729760193782,0.39622,2526.0,2525.6,4.4926]
[1729760193976,0.39624,2525.9,2525.8,3.05034316]
[1729760194590,0.9905,2526.1,2525.6,2.07733824]
[1729760194778,3.2078,2526.2,2525.5,5.1079814]
[1729760194779,0.99054,2526.0,2525.5,5.1079814]
[1729760195083,0.39628,2525.6,2525.5,3.56404316]
[1729760195384,0.39628,2525.6,2525.5,1.13330192]
[1729760195779,0.39628,2525.6,2525.5,0.5137]
[1729760196575,3.2078,2525.6,2525.5,0.61961995]
[1729760196788,3.2078,2525.6,2525.0,3.2078]
[1729760196789,3.2078,2525.6,2525.4,3.05034316]
[1729760197285,0.39629,2525.5,2525.4,3.05034316]
[1729760197489,0.39629,2525.5,2525.4,3.66996031]
[1729760198191,3.2078,2525.6,2525.1,3.05034316]
[1729760198384,0.39634,2525.2,2525.1,3.05034316]
[1729760198585,0.39634,2525.2,2525.1,3.67000889]
[1729760199093,0.39634,2525.2,2525.1,3.05034316]
[1729760199584,0.39636,2525.1,2525.0,3.2078]
[1729760200484,3.7582,2525.3,2524.9,3.05034316]
[1729760200687,0.99086,2525.2,2524.7,3.2078]
[1729760200878,0.3964,2524.8,2524.7,3.2078]
[1729760201892,0.3964,2524.9,2524.7,3.60421]
[1729760202101,0.3964,2524.9,2524.8,3.05034316]
[1729760203890,3.7582,2525.3,2524.8,7.01114316]
[1729760204093,0.5504,2525.3,2525.2,3.44668316]
[1729760204687,0.39632,2525.3,2525.2,3.05034316]
[1729760205388,0.39634,2525.2,2525.1,3.2078]
[1729760205593,3.2078,2525.5,2525.1,3.2078]
[1729760205788,0.39632,2525.3,2525.2,3.05034316]
[1729760207588,0.39636,2525.1,2525.0,3.05034316]
[1729760209791,4.19867,2525.2,2524.7,3.44676316]
[1729760209997,0.3964,2524.9,2524.7,3.44675316]
[1729760210195,0.3964,2524.8,2524.7,3.44675316]
[1729760210390,0.3964,2524.8,2524.7,2.87159388]
[1729760210689,0.3964,2524.8,2524.7,2.47518388]
[1729760210888,0.3964,2524.9,2524.7,2.87160388]
[1729760211089,0.3964,2524.8,2524.7,2.87160388]
[1729760211489,0.3964,2524.9,2524.7,2.87160388]
[1729760211902,0.3964,2524.8,2524.7,2.87160388]
[1729760212295,0.3964,2524.8,2524.7,6.83240388]
[1729760212498,0.3964,2524.8,2524.7,2.87160388]
[1729760212795,0.39638,2525.0,2524.8,0.3964]
[1729760213299,3.2078,2525.2,2524.8,0.3964]
[1729760213503,0.39639,2525.0,2524.8,0.3964]
[1729760213897,0.39639,2525.0,2524.7,2.47518388]
[1729760214102,0.39639,2525.0,2524.9,0.39639]
[1729760214294,3.2078,2525.5,2524.9,3.9608]
[1729760214506,3.6041,2525.5,2525.3,2.87150388]
[1729760214804,3.2078,2525.5,2525.3,2.47518388]
[1729760215005,3.6041,2525.5,2525.3,2.87149388]
[1729760215691,3.6041,2525.5,2525.4,0.39631]
[1729760216294,3.2078,2525.5,2525.4,0.39631]
[1729760216695,0.39627,2525.7,2525.4,3.96]
[1729760216900,3.2078,2525.8,2525.7,2.87144388]
[1729760217097,3.60405,2525.8,2525.7,2.87144388]
[1729760217291,3.60405,2525.8,2525.4,2.87148388]
[1729760217292,3.2078,2525.8,2525.4,2.87148388]
[1729760217491,0.39631,2525.5,2525.4,2.87149388]
[1729760217692,0.39631,2525.5,2525.4,2.47518388]
[1729760222997,3.2078,2525.5,2525.1,2.47518388]
[1729760223203,0.39633,2525.3,2525.1,2.87153388]
[1729760223799,3.2078,2525.5,2525.1,2.47518388]
[1729760224101,3.2078,2525.5,2525.4,2.87149388]
[1729760224294,3.60405,2525.8,2525.6,0.39627]
[1729760224800,3.2078,2525.8,2525.6,0.39627]
[1729760225006,0.39626,2525.7,2525.6,0.39627]
[1729760225307,3.60405,2525.8,2525.6,0.39626]
[1729760225703,0.39628,2525.6,2525.5,0.39629]
[1729760225901,3.2078,2525.8,2525.4,2.47518388]
[1729760225902,0.39629,2525.5,2525.4,2.47518388]
[1729760226601,3.96,2525.5,2524.8,3.2078]
[1729760226803,3.2078,2525.8,2524.6,0.99109]
[1729760226804,0.3964,2524.9,2524.7,0.39641]
[1729760226997,0.3964,2524.9,2524.6,3.78618388]
[1729760226998,3.2078,2525.1,2524.6,2.47518388]
[1729760227199,2.47518388,2525.6,2524.4,2.47518388]
[1729760227200,0.39645,2524.5,2524.4,2.47518388]
[1729760228401,0.39644,2524.6,2524.4,2.87165388]
[1729760228806,0.39644,2524.6,2524.4,2.47518388]
[1729760229604,3.2078,2524.8,2524.4,2.47518388]
[1729760229605,0.39645,2524.5,2524.4,2.47518388]
[1729760229803,0.39645,2524.6,2524.4,2.47518388]
[1729760230305,0.39645,2524.6,2524.4,2.87164388]
[1729760230506,0.39643,2524.7,2524.4,2.87164388]
[1729760230805,0.39642,2524.7,2524.4,2.47518388]
[1729760231008,0.39642,2524.7,2524.4,2.87164388]
[1729760231208,0.39642,2524.7,2524.5,0.39645]
[1729760231899,0.39642,2524.7,2524.4,2.47518388]
[1729760231900,3.2078,2524.8,2524.1,9.54677775]
[1729760232109,0.3965,2524.2,2524.1,9.54677775]